{"text_format":"1","workbook":"xlsx","n_sheets":2,"sheets":["Списки КРР","Списки УОП"],"not_rendered":{"charts":0,"images":0,"macros":1,"external_links":1,"defined_names":31,"comments":0,"pivot_tables":0},"unopened":[],"bounds":{"document_bytes":16777216,"sheet_cells":100000,"rows_first":2000,"rows_last":500,"rows_between":2000,"halvings":0,"cell_chars":16384,"cell_head_chars":4096},"cells_cut":0,"cells_raw":0,"read":"whole","date_system":"1900"}

{"sheet":"Списки КРР","index":0,"n_rows":28,"n_cols":18,"rows_kept":28,"cut":false,"hidden":false,"merged":[]}
[]
[]
[null,null,null,null,null,null,null,null,null,null,null,"1 группа"]
[null,null,null,"индивидуальные занятия",null,null,null,null,null,null,null,"Групповые занятия",null,null,null,13,"общеразвивающая"]
["данные подставляются из таблицы \"Списки УОП\" по столбцу \"Номер в списке\" через функцию ВПР",null,null,"Номер в списке","код ребенка","Группа","пол","возраст","код нарушения","Программа\n сопровождения",null,"Номер в списке","код ребенка","Группа","пол","возраст","код нарушения","Программа\n сопровождения"]
[null,null,null,{"$f":"INDEX('Списки УОП'!B6:S69,MATCH($D$4,список_детей[Форма сопровождения],0),1)","v":1},"ЗМН",2,"м","6 лет","ТНР",{"$f":"VLOOKUP(Индивидуальные_занятия[[#This Row],[Номер в списке]],список_детей[],13)","v":"АОП для детей с ТНР"},null,{"$f":"INDEX('Списки УОП'!B6:S66,MATCH($P$4,список_детей[Группа],0),1)","v":19},"КРД",{"$f":"VLOOKUP(первая_группа[[#This Row],[Номер в списке]],список_детей[],10)","v":13},"м","7 лет","ЗПР","В гости к Монсикам"]
["Вставляются ненужные данные из таблицы",null,null,{"$f":"INDEX('Списки УОП'!B7:S70,MATCH($D$4,список_детей[Форма сопровождения],0),1)","v":2},"ЗМО",3,"м","6 лет","ТНР",{"$f":"VLOOKUP(Индивидуальные_занятия[[#This Row],[Номер в списке]],список_детей[],13)","v":"АОП для детей с ТНР"},null,{"$f":"INDEX('Списки УОП'!B7:S67,MATCH($P$4,список_детей[Группа],0),1)","v":20},"ВИД",{"$f":"VLOOKUP(первая_группа[[#This Row],[Номер в списке]],список_детей[],10)","v":13},"м","7 лет","ЗПР","В гости к Монсикам"]
["в таблице \"Индивидуальные занятия\" должны быть только \"АОП для …\"",null,null,{"$f":"INDEX('Списки УОП'!B8:S71,MATCH($D$4,список_детей[Форма сопровождения],0),1)","v":3},"ИЧЕ",4,"м","6 лет","ТНР",{"$f":"VLOOKUP(Индивидуальные_занятия[[#This Row],[Номер в списке]],список_детей[],13)","v":"АОП для детей с ТНР"},null,{"$f":"INDEX('Списки УОП'!B8:S68,MATCH($P$4,список_детей[Группа],0),1)","v":21},"ННС",{"$f":"VLOOKUP(первая_группа[[#This Row],[Номер в списке]],список_детей[],10)","v":13},"д","7 лет","ЗПР","В гости к Монсикам"]
["в таблице групповые занятия только группа из ячейки Р4",null,null,{"$f":"INDEX('Списки УОП'!B9:S72,MATCH($D$4,список_детей[Форма сопровождения],0),1)","v":4},"ИПА",5,"м","7 лет","ТНР",{"$f":"VLOOKUP(Индивидуальные_занятия[[#This Row],[Номер в списке]],список_детей[],13)","v":"АОП для детей с ТНР"},null,{"$f":"INDEX('Списки УОП'!B9:S69,MATCH($P$4,список_детей[Группа],0),1)","v":22},"ЩЕИ",{"$f":"VLOOKUP(первая_группа[[#This Row],[Номер в списке]],список_детей[],10)","v":13},"д","7 лет","ЗПР","В гости к Монсикам"]
[null,null,null,{"$f":"INDEX('Списки УОП'!B10:S73,MATCH($D$4,список_детей[Форма сопровождения],0),1)","v":5},"КДР",11,"д","6 лет","ТНР",{"$f":"VLOOKUP(Индивидуальные_занятия[[#This Row],[Номер в списке]],список_детей[],13)","v":"АОП для детей с ТНР"},null,{"$f":"INDEX('Списки УОП'!B10:S70,MATCH($P$4,список_детей[Группа],0),1)","v":23},"УЯГ",{"$f":"VLOOKUP(первая_группа[[#This Row],[Номер в списке]],список_детей[],10)","v":13},"д","7 лет","ЗПР","В гости к Монсикам"]
[null,null,null,{"$f":"INDEX('Списки УОП'!B11:S74,MATCH($D$4,список_детей[Форма сопровождения],0),1)","v":6},"КАИ",11,"м","6 лет","ТНР",{"$f":"VLOOKUP(Индивидуальные_занятия[[#This Row],[Номер в списке]],список_детей[],13)","v":"АОП для детей с ТНР"},null,{"$f":"INDEX('Списки УОП'!B11:S71,MATCH($P$4,список_детей[Группа],0),1)","v":24},"БДП",{"$f":"VLOOKUP(первая_группа[[#This Row],[Номер в списке]],список_детей[],10)","v":13},"м","7 лет","ЗПР","В гости к Монсикам"]
[null,null,null,{"$f":"INDEX('Списки УОП'!B12:S75,MATCH($D$4,список_детей[Форма сопровождения],0),1)","v":7},"КАЯ",17,"м","6 лет","ТНР",{"$f":"VLOOKUP(Индивидуальные_занятия[[#This Row],[Номер в списке]],список_детей[],13)","v":"АОП для детей с ТНР"},null,{"$f":"INDEX('Списки УОП'!B12:S72,MATCH($P$4,список_детей[Группа],0),1)","v":25},"КМК",{"$f":"VLOOKUP(первая_группа[[#This Row],[Номер в списке]],список_детей[],10)","v":13},"м","7 лет","ЗПР","В гости к Монсикам"]
[null,null,null,{"$f":"INDEX('Списки УОП'!B13:S76,MATCH($D$4,список_детей[Форма сопровождения],0),1)","v":8},"СИК",17,"м","6 лет","ТНР",{"$f":"VLOOKUP(Индивидуальные_занятия[[#This Row],[Номер в списке]],список_детей[],13)","v":"Школа Фиолетового леса"},null,{"$f":"INDEX('Списки УОП'!B13:S73,MATCH($P$4,список_детей[Группа],0),1)","v":26},"КАИ",{"$f":"VLOOKUP(первая_группа[[#This Row],[Номер в списке]],список_детей[],10)","v":13},"м","7 лет","ЗПР","В гости к Монсикам"]
[null,null,null,{"$f":"INDEX('Списки УОП'!B14:S77,MATCH($D$4,список_детей[Форма сопровождения],0),1)","v":9},"ФВФ",17,"м","2 лет","УО",{"$f":"VLOOKUP(Индивидуальные_занятия[[#This Row],[Номер в списке]],список_детей[],13)","v":"Школа Фиолетового леса"},null,{"$f":"INDEX('Списки УОП'!B14:S74,MATCH($P$4,список_детей[Группа],0),1)","v":27},"НЕА",{"$f":"VLOOKUP(первая_группа[[#This Row],[Номер в списке]],список_детей[],10)","v":13},"д","7 лет","ЗПР","В гости к Монсикам"]
[null,null,null,{"$f":"INDEX('Списки УОП'!B15:S78,MATCH($D$4,список_детей[Форма сопровождения],0),1)","v":10},"КМЧ",17,"м","6 лет","ЗПР",{"$f":"VLOOKUP(Индивидуальные_занятия[[#This Row],[Номер в списке]],список_детей[],13)","v":"Школа Фиолетового леса"},null,{"$f":"INDEX('Списки УОП'!B15:S75,MATCH($P$4,список_детей[Группа],0),1)","v":28},"ГАН",{"$f":"VLOOKUP(первая_группа[[#This Row],[Номер в списке]],список_детей[],10)","v":13},"д","7 лет","ЗПР","В гости к Монсикам"]
[null,null,null,{"$f":"INDEX('Списки УОП'!B16:S79,MATCH($D$4,список_детей[Форма сопровождения],0),1)","v":11},"КЕА",17,"д","6 лет","ЗПР",{"$f":"VLOOKUP(Индивидуальные_занятия[[#This Row],[Номер в списке]],список_детей[],13)","v":"Школа Фиолетового леса"},null,{"$f":"INDEX('Списки УОП'!B16:S76,MATCH($P$4,список_детей[Группа],0),1)","v":29},"ЛАД",{"$f":"VLOOKUP(первая_группа[[#This Row],[Номер в списке]],список_детей[],10)","v":13},"м","7 лет","ЗПР","В гости к Монсикам"]
[null,null,null,{"$f":"INDEX('Списки УОП'!B17:S80,MATCH($D$4,список_детей[Форма сопровождения],0),1)","v":12},"КДИ",17,"д","6 лет","ЗПР",{"$f":"VLOOKUP(Индивидуальные_занятия[[#This Row],[Номер в списке]],список_детей[],13)","v":"Школа Фиолетового леса"},null,{"$f":"INDEX('Списки УОП'!B17:S77,MATCH($P$4,список_детей[Группа],0),1)","v":30},"СЮМ",{"$f":"VLOOKUP(первая_группа[[#This Row],[Номер в списке]],список_детей[],10)","v":13},"м","7 лет","ЗПР","В гости к Монсикам"]
[null,null,null,{"$f":"INDEX('Списки УОП'!B18:S81,MATCH($D$4,список_детей[Форма сопровождения],0),1)","v":13},"КАП",17,"д","6 лет","УО",{"$f":"VLOOKUP(Индивидуальные_занятия[[#This Row],[Номер в списке]],список_детей[],13)","v":"Школа Фиолетового леса"},null,{"$f":"INDEX('Списки УОП'!B18:S78,MATCH($P$4,список_детей[Группа],0),1)","v":31},"ПВД",{"$f":"VLOOKUP(первая_группа[[#This Row],[Номер в списке]],список_детей[],10)","v":10},"м","7 лет","ЗПР","В гости к Монсикам"]
[null,null,null,{"$f":"INDEX('Списки УОП'!B19:S82,MATCH($D$4,список_детей[Форма сопровождения],0),1)","v":14},"ККК",1,"д","6 лет","УО",{"$f":"VLOOKUP(Индивидуальные_занятия[[#This Row],[Номер в списке]],список_детей[],13)","v":"Школа Фиолетового леса"},null,{"$f":"INDEX('Списки УОП'!B19:S79,MATCH($P$4,список_детей[Группа],0),1)","v":32},"ГМР",{"$f":"VLOOKUP(первая_группа[[#This Row],[Номер в списке]],список_детей[],10)","v":10},"м","7 лет","ЗПР","В гости к Монсикам"]
[null,null,null,{"$f":"INDEX('Списки УОП'!B20:S83,MATCH($D$4,список_детей[Форма сопровождения],0),1)","v":15},"КНМ",2,"д","6 лет","ЗПР",{"$f":"VLOOKUP(Индивидуальные_занятия[[#This Row],[Номер в списке]],список_детей[],13)","v":"АОП для детей с УО"},null,{"$f":"INDEX('Списки УОП'!B20:S80,MATCH($P$4,список_детей[Группа],0),1)","v":33},"КПИ",{"$f":"VLOOKUP(первая_группа[[#This Row],[Номер в списке]],список_детей[],10)","v":10},"д","7 лет","ЗПР","В гости к Монсикам"]
[null,null,null,{"$f":"INDEX('Списки УОП'!B21:S84,MATCH($D$4,список_детей[Форма сопровождения],0),1)","v":16},"КЗД",2,"д","6 лет","ЗПР",{"$f":"VLOOKUP(Индивидуальные_занятия[[#This Row],[Номер в списке]],список_детей[],13)","v":"АОП для детей с ЗПР"},null,{"$f":"INDEX('Списки УОП'!B21:S81,MATCH($P$4,список_детей[Группа],0),1)","v":34},"ИЛД",{"$f":"VLOOKUP(первая_группа[[#This Row],[Номер в списке]],список_детей[],10)","v":10},"м","7 лет","ЗПР","В гости к Монсикам"]
[null,null,null,{"$f":"INDEX('Списки УОП'!B22:S85,MATCH($D$4,список_детей[Форма сопровождения],0),1)","v":17},"МРС",2,"д","7 лет","ТНР",{"$f":"VLOOKUP(Индивидуальные_занятия[[#This Row],[Номер в списке]],список_детей[],13)","v":"АОП для детей с ЗПР"},null,{"$f":"INDEX('Списки УОП'!B22:S82,MATCH($P$4,список_детей[Группа],0),1)","v":35},"РТА",{"$f":"VLOOKUP(первая_группа[[#This Row],[Номер в списке]],список_детей[],10)","v":10},"д","7 лет","ЗПР","В гости к Монсикам"]
[null,null,null,{"$f":"INDEX('Списки УОП'!B23:S86,MATCH($D$4,список_детей[Форма сопровождения],0),1)","v":18},"НЗТ",13,"м","6 лет","ТНР",{"$f":"VLOOKUP(Индивидуальные_занятия[[#This Row],[Номер в списке]],список_детей[],13)","v":"АОП для детей с ТНР"},null,{"$f":"INDEX('Списки УОП'!B23:S83,MATCH($P$4,список_детей[Группа],0),1)","v":36},"ЯАИ",{"$f":"VLOOKUP(первая_группа[[#This Row],[Номер в списке]],список_детей[],10)","v":10},"д","7 лет","ЗПР","В гости к Монсикам"]
[null,null,null,{"$f":"INDEX('Списки УОП'!B24:S87,MATCH($D$4,список_детей[Форма сопровождения],0),1)","v":19},"НЗТ",14,"м","7 лет","ТНР",{"$f":"VLOOKUP(Индивидуальные_занятия[[#This Row],[Номер в списке]],список_детей[],13)","v":"АОП для детей с ТНР"},null,{"$f":"INDEX('Списки УОП'!B24:S84,MATCH($P$4,список_детей[Группа],0),1)","v":37},{"$error":"#N/A"},{"$f":"VLOOKUP(первая_группа[[#This Row],[Номер в списке]],список_детей[],10)","v":10},{"$error":"#N/A"},{"$error":"#N/A"},{"$error":"#N/A"},{"$error":"#N/A"}]
[null,null,null,{"$f":"INDEX('Списки УОП'!B25:S88,MATCH($D$4,список_детей[Форма сопровождения],0),1)","v":20},"НЗТ",15,"м","8 лет","ТНР",{"$f":"VLOOKUP(Индивидуальные_занятия[[#This Row],[Номер в списке]],список_детей[],13)","v":"Лаборатория профессора Размышляйкина"},null,{"$f":"INDEX('Списки УОП'!B25:S85,MATCH($P$4,список_детей[Группа],0),1)","v":38},{"$error":"#N/A"},{"$f":"VLOOKUP(первая_группа[[#This Row],[Номер в списке]],список_детей[],10)","v":10},{"$error":"#N/A"},{"$error":"#N/A"},{"$error":"#N/A"},{"$error":"#N/A"}]
[null,null,null,{"$f":"INDEX('Списки УОП'!B26:S89,MATCH($D$4,список_детей[Форма сопровождения],0),1)","v":21},"НЗТ",16,"м","9 лет","ТНР",{"$f":"VLOOKUP(Индивидуальные_занятия[[#This Row],[Номер в списке]],список_детей[],13)","v":"Лаборатория профессора Размышляйкина"},null,{"$f":"INDEX('Списки УОП'!B26:S86,MATCH($P$4,список_детей[Группа],0),1)","v":39},{"$error":"#N/A"},{"$f":"VLOOKUP(первая_группа[[#This Row],[Номер в списке]],список_детей[],10)","v":10},{"$error":"#N/A"},{"$error":"#N/A"},{"$error":"#N/A"},{"$error":"#N/A"}]
[null,null,null,{"$f":"INDEX('Списки УОП'!B27:S90,MATCH($D$4,список_детей[Форма сопровождения],0),1)","v":22},"НЗТ",17,"м","10 лет","ТНР",{"$f":"VLOOKUP(Индивидуальные_занятия[[#This Row],[Номер в списке]],список_детей[],13)","v":"Лаборатория профессора Размышляйкина"},null,{"$f":"INDEX('Списки УОП'!B27:S87,MATCH($P$4,список_детей[Группа],0),1)","v":40},null,{"$f":"VLOOKUP(первая_группа[[#This Row],[Номер в списке]],список_детей[],10)","v":10}]
[null,null,null,{"$f":"INDEX('Списки УОП'!B28:S91,MATCH($D$4,список_детей[Форма сопровождения],0),1)","v":23},"НЗТ",18,"м","11 лет","ТНР",{"$f":"VLOOKUP(Индивидуальные_занятия[[#This Row],[Номер в списке]],список_детей[],13)","v":"Лаборатория профессора Размышляйкина"},null,{"$f":"INDEX('Списки УОП'!B28:S88,MATCH($P$4,список_детей[Группа],0),1)","v":41},null,{"$f":"VLOOKUP(первая_группа[[#This Row],[Номер в списке]],список_детей[],10)","v":15}]

{"sheet":"Списки УОП","index":1,"n_rows":495,"n_cols":19,"rows_kept":495,"cut":false,"hidden":false,"merged":[[3,1,3,18]]}
[]
[]
[null,1,2,3,4,5,6,7,8,9,10,11,12,13,14,15,16,17,18]
[null,"Общий список детей"]
[null,"№ ","Ф","И","О","ФИО (код)","ФИО полностью","Дата Рождения","возраст","пол","Группа","Направленность","Возраст группы","Программа","Форма сопровождения","код нарушения","Номер протокола ПМПК","Адрес проживания","Примечания"]
[null,1,"Жорж ","Дмитрий","Александрович",{"$f":"CONCATENATE(LEFT(список_детей[[#This Row],[Ф]]),LEFT(список_детей[[#This Row],[И]]),LEFT(список_детей[[#This Row],[О]]))","v":"ЖДА"},{"$f":"список_детей[[#This Row],[И]]&\" \"&LEFT(список_детей[[#This Row],[Ф]])&\".\"","v":"Дмитрий Ж."},"2015-07-25",{"$f":"IF(список_детей[[#This Row],[Дата Рождения]]=\"\",\"\",DATEDIF(список_детей[[#This Row],[Дата Рождения]],TODAY(),\"y\")&\" лет\")","v":"6 лет"},{"$f":"IF(список_детей[[#This Row],[О]]=\"\",\"\",IF(RIGHT(список_детей[[#This Row],[О]])=\"ч\",\"м\",\"д\"))","v":"м"},1,"общеразвивающая","1-2 года","АОП для детей с ТНР","индивидуальные занятия","ТНР",null,null,"ОВЗ"]
[null,2,"Зайков","Моисей","Назарович",{"$f":"CONCATENATE(LEFT(список_детей[[#This Row],[Ф]]),LEFT(список_детей[[#This Row],[И]]),LEFT(список_детей[[#This Row],[О]]))","v":"ЗМН"},{"$f":"список_детей[[#This Row],[И]]&\" \"&LEFT(список_детей[[#This Row],[Ф]])&\".\"","v":"Моисей З."},"2015-10-26",{"$f":"IF(список_детей[[#This Row],[Дата Рождения]]=\"\",\"\",DATEDIF(список_детей[[#This Row],[Дата Рождения]],TODAY(),\"y\")&\" лет\")","v":"6 лет"},{"$f":"IF(список_детей[[#This Row],[О]]=\"\",\"\",IF(RIGHT(список_детей[[#This Row],[О]])=\"ч\",\"м\",\"д\"))","v":"м"},2,"общеразвивающая","3-4 года","АОП для детей с ТНР","индивидуальные занятия","ТНР"]
[null,3,"Зощенко","Мстислав","Олегович",{"$f":"CONCATENATE(LEFT(список_детей[[#This Row],[Ф]]),LEFT(список_детей[[#This Row],[И]]),LEFT(список_детей[[#This Row],[О]]))","v":"ЗМО"},{"$f":"список_детей[[#This Row],[И]]&\" \"&LEFT(список_детей[[#This Row],[Ф]])&\".\"","v":"Мстислав З."},"2015-09-21",{"$f":"IF(список_детей[[#This Row],[Дата Рождения]]=\"\",\"\",DATEDIF(список_детей[[#This Row],[Дата Рождения]],TODAY(),\"y\")&\" лет\")","v":"6 лет"},{"$f":"IF(список_детей[[#This Row],[О]]=\"\",\"\",IF(RIGHT(список_детей[[#This Row],[О]])=\"ч\",\"м\",\"д\"))","v":"м"},3,"общеразвивающая","3-4 года","АОП для детей с ТНР","индивидуальные занятия","ТНР"]
[null,4,"Иванов","Чеслав","Елизарович",{"$f":"CONCATENATE(LEFT(список_детей[[#This Row],[Ф]]),LEFT(список_детей[[#This Row],[И]]),LEFT(список_детей[[#This Row],[О]]))","v":"ИЧЕ"},{"$f":"список_детей[[#This Row],[И]]&\" \"&LEFT(список_детей[[#This Row],[Ф]])&\".\"","v":"Чеслав И."},"2015-07-22",{"$f":"IF(список_детей[[#This Row],[Дата Рождения]]=\"\",\"\",DATEDIF(список_детей[[#This Row],[Дата Рождения]],TODAY(),\"y\")&\" лет\")","v":"6 лет"},{"$f":"IF(список_детей[[#This Row],[О]]=\"\",\"\",IF(RIGHT(список_детей[[#This Row],[О]])=\"ч\",\"м\",\"д\"))","v":"м"},4,"оздоровительная","2-3  года","АОП для детей с ТНР","индивидуальные занятия","ТНР"]
[null,5,"Иванченко","Поликарп","Анатолиевич",{"$f":"CONCATENATE(LEFT(список_детей[[#This Row],[Ф]]),LEFT(список_детей[[#This Row],[И]]),LEFT(список_детей[[#This Row],[О]]))","v":"ИПА"},{"$f":"список_детей[[#This Row],[И]]&\" \"&LEFT(список_детей[[#This Row],[Ф]])&\".\"","v":"Поликарп И."},"2015-01-18",{"$f":"IF(список_детей[[#This Row],[Дата Рождения]]=\"\",\"\",DATEDIF(список_детей[[#This Row],[Дата Рождения]],TODAY(),\"y\")&\" лет\")","v":"7 лет"},{"$f":"IF(список_детей[[#This Row],[О]]=\"\",\"\",IF(RIGHT(список_детей[[#This Row],[О]])=\"ч\",\"м\",\"д\"))","v":"м"},5,"оздоровительная","3-4 года","АОП для детей с ТНР","индивидуальные занятия","ТНР"]
[null,6,"Канадцева","Дина","Романовна",{"$f":"CONCATENATE(LEFT(список_детей[[#This Row],[Ф]]),LEFT(список_детей[[#This Row],[И]]),LEFT(список_детей[[#This Row],[О]]))","v":"КДР"},{"$f":"список_детей[[#This Row],[И]]&\" \"&LEFT(список_детей[[#This Row],[Ф]])&\".\"","v":"Дина К."},"2015-10-30",{"$f":"IF(список_детей[[#This Row],[Дата Рождения]]=\"\",\"\",DATEDIF(список_детей[[#This Row],[Дата Рождения]],TODAY(),\"y\")&\" лет\")","v":"6 лет"},{"$f":"IF(список_детей[[#This Row],[О]]=\"\",\"\",IF(RIGHT(список_детей[[#This Row],[О]])=\"ч\",\"м\",\"д\"))","v":"д"},11,"общеразвивающая","4-5 лет","АОП для детей с ТНР","индивидуальные занятия","ТНР"]
[null,7,"Караулин","Андрон","Игоревич",{"$f":"CONCATENATE(LEFT(список_детей[[#This Row],[Ф]]),LEFT(список_детей[[#This Row],[И]]),LEFT(список_детей[[#This Row],[О]]))","v":"КАИ"},{"$f":"список_детей[[#This Row],[И]]&\" \"&LEFT(список_детей[[#This Row],[Ф]])&\".\"","v":"Андрон К."},"2015-04-26",{"$f":"IF(список_детей[[#This Row],[Дата Рождения]]=\"\",\"\",DATEDIF(список_детей[[#This Row],[Дата Рождения]],TODAY(),\"y\")&\" лет\")","v":"6 лет"},{"$f":"IF(список_детей[[#This Row],[О]]=\"\",\"\",IF(RIGHT(список_детей[[#This Row],[О]])=\"ч\",\"м\",\"д\"))","v":"м"},11,"общеразвивающая","4-5 лет","АОП для детей с ТНР","индивидуальные занятия","ТНР"]
[null,8,"Кремов","Алексей","Яковович",{"$f":"CONCATENATE(LEFT(список_детей[[#This Row],[Ф]]),LEFT(список_детей[[#This Row],[И]]),LEFT(список_детей[[#This Row],[О]]))","v":"КАЯ"},{"$f":"список_детей[[#This Row],[И]]&\" \"&LEFT(список_детей[[#This Row],[Ф]])&\".\"","v":"Алексей К."},"2015-08-14",{"$f":"IF(список_детей[[#This Row],[Дата Рождения]]=\"\",\"\",DATEDIF(список_детей[[#This Row],[Дата Рождения]],TODAY(),\"y\")&\" лет\")","v":"6 лет"},{"$f":"IF(список_детей[[#This Row],[О]]=\"\",\"\",IF(RIGHT(список_детей[[#This Row],[О]])=\"ч\",\"м\",\"д\"))","v":"м"},17,"комбинированная","5-6 лет","Школа Фиолетового леса","групповые занятия","ТНР"]
[null,9,"Столин","Игорь","Кондратович",{"$f":"CONCATENATE(LEFT(список_детей[[#This Row],[Ф]]),LEFT(список_детей[[#This Row],[И]]),LEFT(список_детей[[#This Row],[О]]))","v":"СИК"},{"$f":"список_детей[[#This Row],[И]]&\" \"&LEFT(список_детей[[#This Row],[Ф]])&\".\"","v":"Игорь С."},"2015-07-21",{"$f":"IF(список_детей[[#This Row],[Дата Рождения]]=\"\",\"\",DATEDIF(список_детей[[#This Row],[Дата Рождения]],TODAY(),\"y\")&\" лет\")","v":"6 лет"},{"$f":"IF(список_детей[[#This Row],[О]]=\"\",\"\",IF(RIGHT(список_детей[[#This Row],[О]])=\"ч\",\"м\",\"д\"))","v":"м"},17,"комбинированная","5-6 лет","Школа Фиолетового леса","групповые занятия","ТНР"]
[null,10,"Федоров","Вячеслав","Федорович",{"$f":"CONCATENATE(LEFT(список_детей[[#This Row],[Ф]]),LEFT(список_детей[[#This Row],[И]]),LEFT(список_детей[[#This Row],[О]]))","v":"ФВФ"},{"$f":"список_детей[[#This Row],[И]]&\" \"&LEFT(список_детей[[#This Row],[Ф]])&\".\"","v":"Вячеслав Ф."},"2019-09-30",{"$f":"IF(список_детей[[#This Row],[Дата Рождения]]=\"\",\"\",DATEDIF(список_детей[[#This Row],[Дата Рождения]],TODAY(),\"y\")&\" лет\")","v":"2 лет"},{"$f":"IF(список_детей[[#This Row],[О]]=\"\",\"\",IF(RIGHT(список_детей[[#This Row],[О]])=\"ч\",\"м\",\"д\"))","v":"м"},17,"комбинированная","5-6 лет","Школа Фиолетового леса","групповые занятия","УО"]
[null,11,"Каретников","Мартын","Чеславович",{"$f":"CONCATENATE(LEFT(список_детей[[#This Row],[Ф]]),LEFT(список_детей[[#This Row],[И]]),LEFT(список_детей[[#This Row],[О]]))","v":"КМЧ"},{"$f":"список_детей[[#This Row],[И]]&\" \"&LEFT(список_детей[[#This Row],[Ф]])&\".\"","v":"Мартын К."},"2015-09-28",{"$f":"IF(список_детей[[#This Row],[Дата Рождения]]=\"\",\"\",DATEDIF(список_детей[[#This Row],[Дата Рождения]],TODAY(),\"y\")&\" лет\")","v":"6 лет"},{"$f":"IF(список_детей[[#This Row],[О]]=\"\",\"\",IF(RIGHT(список_детей[[#This Row],[О]])=\"ч\",\"м\",\"д\"))","v":"м"},17,"комбинированная","5-6 лет","Школа Фиолетового леса","групповые занятия","ЗПР"]
[null,12,"Каримов","Екатерина","Антониновна",{"$f":"CONCATENATE(LEFT(список_детей[[#This Row],[Ф]]),LEFT(список_детей[[#This Row],[И]]),LEFT(список_детей[[#This Row],[О]]))","v":"КЕА"},{"$f":"список_детей[[#This Row],[И]]&\" \"&LEFT(список_детей[[#This Row],[Ф]])&\".\"","v":"Екатерина К."},"2015-05-12",{"$f":"IF(список_детей[[#This Row],[Дата Рождения]]=\"\",\"\",DATEDIF(список_детей[[#This Row],[Дата Рождения]],TODAY(),\"y\")&\" лет\")","v":"6 лет"},{"$f":"IF(список_детей[[#This Row],[О]]=\"\",\"\",IF(RIGHT(список_детей[[#This Row],[О]])=\"ч\",\"м\",\"д\"))","v":"д"},17,"комбинированная","5-6 лет","Школа Фиолетового леса","групповые занятия","ЗПР"]
[null,13,"Ковшутина","Дарья","Ивановна",{"$f":"CONCATENATE(LEFT(список_детей[[#This Row],[Ф]]),LEFT(список_детей[[#This Row],[И]]),LEFT(список_детей[[#This Row],[О]]))","v":"КДИ"},{"$f":"список_детей[[#This Row],[И]]&\" \"&LEFT(список_детей[[#This Row],[Ф]])&\".\"","v":"Дарья К."},"2015-09-16",{"$f":"IF(список_детей[[#This Row],[Дата Рождения]]=\"\",\"\",DATEDIF(список_детей[[#This Row],[Дата Рождения]],TODAY(),\"y\")&\" лет\")","v":"6 лет"},{"$f":"IF(список_детей[[#This Row],[О]]=\"\",\"\",IF(RIGHT(список_детей[[#This Row],[О]])=\"ч\",\"м\",\"д\"))","v":"д"},17,"комбинированная","5-6 лет","Школа Фиолетового леса","групповые занятия","ЗПР"]
[null,14,"Косинова","Анфиса","Петровна",{"$f":"CONCATENATE(LEFT(список_детей[[#This Row],[Ф]]),LEFT(список_детей[[#This Row],[И]]),LEFT(список_детей[[#This Row],[О]]))","v":"КАП"},{"$f":"список_детей[[#This Row],[И]]&\" \"&LEFT(список_детей[[#This Row],[Ф]])&\".\"","v":"Анфиса К."},"2015-04-22",{"$f":"IF(список_детей[[#This Row],[Дата Рождения]]=\"\",\"\",DATEDIF(список_детей[[#This Row],[Дата Рождения]],TODAY(),\"y\")&\" лет\")","v":"6 лет"},{"$f":"IF(список_детей[[#This Row],[О]]=\"\",\"\",IF(RIGHT(список_детей[[#This Row],[О]])=\"ч\",\"м\",\"д\"))","v":"д"},17,"комбинированная","5-6 лет","Школа Фиолетового леса","групповые занятия","УО"]
[null,15,"Косомова","Кира","Кузьмевна",{"$f":"CONCATENATE(LEFT(список_детей[[#This Row],[Ф]]),LEFT(список_детей[[#This Row],[И]]),LEFT(список_детей[[#This Row],[О]]))","v":"ККК"},{"$f":"список_детей[[#This Row],[И]]&\" \"&LEFT(список_детей[[#This Row],[Ф]])&\".\"","v":"Кира К."},"2015-04-17",{"$f":"IF(список_детей[[#This Row],[Дата Рождения]]=\"\",\"\",DATEDIF(список_детей[[#This Row],[Дата Рождения]],TODAY(),\"y\")&\" лет\")","v":"6 лет"},{"$f":"IF(список_детей[[#This Row],[О]]=\"\",\"\",IF(RIGHT(список_детей[[#This Row],[О]])=\"ч\",\"м\",\"д\"))","v":"д"},1,"общеразвивающая","1-2 года","АОП для детей с УО","индивидуальные занятия","УО"]
[null,16,"Кузаева","Нона","Михеевна",{"$f":"CONCATENATE(LEFT(список_детей[[#This Row],[Ф]]),LEFT(список_детей[[#This Row],[И]]),LEFT(список_детей[[#This Row],[О]]))","v":"КНМ"},{"$f":"список_детей[[#This Row],[И]]&\" \"&LEFT(список_детей[[#This Row],[Ф]])&\".\"","v":"Нона К."},"2015-11-23",{"$f":"IF(список_детей[[#This Row],[Дата Рождения]]=\"\",\"\",DATEDIF(список_детей[[#This Row],[Дата Рождения]],TODAY(),\"y\")&\" лет\")","v":"6 лет"},{"$f":"IF(список_детей[[#This Row],[О]]=\"\",\"\",IF(RIGHT(список_детей[[#This Row],[О]])=\"ч\",\"м\",\"д\"))","v":"д"},2,"общеразвивающая","3-4 года","АОП для детей с ЗПР","индивидуальные занятия","ЗПР"]
[null,17,"Кузинова","Злата","Данилевна",{"$f":"CONCATENATE(LEFT(список_детей[[#This Row],[Ф]]),LEFT(список_детей[[#This Row],[И]]),LEFT(список_детей[[#This Row],[О]]))","v":"КЗД"},{"$f":"список_детей[[#This Row],[И]]&\" \"&LEFT(список_детей[[#This Row],[Ф]])&\".\"","v":"Злата К."},"2015-11-26",{"$f":"IF(список_детей[[#This Row],[Дата Рождения]]=\"\",\"\",DATEDIF(список_детей[[#This Row],[Дата Рождения]],TODAY(),\"y\")&\" лет\")","v":"6 лет"},{"$f":"IF(список_детей[[#This Row],[О]]=\"\",\"\",IF(RIGHT(список_детей[[#This Row],[О]])=\"ч\",\"м\",\"д\"))","v":"д"},2,"общеразвивающая","3-4 года","АОП для детей с ЗПР","индивидуальные занятия","ЗПР"]
[null,18,"Малышева","Римма","Станиславовна",{"$f":"CONCATENATE(LEFT(список_детей[[#This Row],[Ф]]),LEFT(список_детей[[#This Row],[И]]),LEFT(список_детей[[#This Row],[О]]))","v":"МРС"},{"$f":"список_детей[[#This Row],[И]]&\" \"&LEFT(список_детей[[#This Row],[Ф]])&\".\"","v":"Римма М."},"2015-01-09",{"$f":"IF(список_детей[[#This Row],[Дата Рождения]]=\"\",\"\",DATEDIF(список_детей[[#This Row],[Дата Рождения]],TODAY(),\"y\")&\" лет\")","v":"7 лет"},{"$f":"IF(список_детей[[#This Row],[О]]=\"\",\"\",IF(RIGHT(список_детей[[#This Row],[О]])=\"ч\",\"м\",\"д\"))","v":"д"},2,"общеразвивающая","3-4 года","АОП для детей с ТНР","индивидуальные занятия","ТНР"]
[null,19,"Набатников","Захар","Трофимович",{"$f":"CONCATENATE(LEFT(список_детей[[#This Row],[Ф]]),LEFT(список_детей[[#This Row],[И]]),LEFT(список_детей[[#This Row],[О]]))","v":"НЗТ"},{"$f":"список_детей[[#This Row],[И]]&\" \"&LEFT(список_детей[[#This Row],[Ф]])&\".\"","v":"Захар Н."},"2015-07-11",{"$f":"IF(список_детей[[#This Row],[Дата Рождения]]=\"\",\"\",DATEDIF(список_детей[[#This Row],[Дата Рождения]],TODAY(),\"y\")&\" лет\")","v":"6 лет"},{"$f":"IF(список_детей[[#This Row],[О]]=\"\",\"\",IF(RIGHT(список_детей[[#This Row],[О]])=\"ч\",\"м\",\"д\"))","v":"м"},13,"компенсирующая","5-6 лет","АОП для детей с ТНР","индивидуальные занятия","ТНР"]
[null,20,"Гуров","Егор","Тимурович",{"$f":"CONCATENATE(LEFT(список_детей[[#This Row],[Ф]]),LEFT(список_детей[[#This Row],[И]]),LEFT(список_детей[[#This Row],[О]]))","v":"ГЕТ"},{"$f":"список_детей[[#This Row],[И]]&\" \"&LEFT(список_детей[[#This Row],[Ф]])&\".\"","v":"Егор Г."},"2015-11-04",{"$f":"IF(список_детей[[#This Row],[Дата Рождения]]=\"\",\"\",DATEDIF(список_детей[[#This Row],[Дата Рождения]],TODAY(),\"y\")&\" лет\")","v":"6 лет"},{"$f":"IF(список_детей[[#This Row],[О]]=\"\",\"\",IF(RIGHT(список_детей[[#This Row],[О]])=\"ч\",\"м\",\"д\"))","v":"м"},13,"компенсирующая","5-6 лет","Лаборатория профессора Размышляйкина","групповые занятия","ЗПР"]
[null,21,"Егоров","Евгений","Савельевич",{"$f":"CONCATENATE(LEFT(список_детей[[#This Row],[Ф]]),LEFT(список_детей[[#This Row],[И]]),LEFT(список_детей[[#This Row],[О]]))","v":"ЕЕС"},{"$f":"список_детей[[#This Row],[И]]&\" \"&LEFT(список_детей[[#This Row],[Ф]])&\".\"","v":"Евгений Е."},"2015-11-02",{"$f":"IF(список_детей[[#This Row],[Дата Рождения]]=\"\",\"\",DATEDIF(список_детей[[#This Row],[Дата Рождения]],TODAY(),\"y\")&\" лет\")","v":"6 лет"},{"$f":"IF(список_детей[[#This Row],[О]]=\"\",\"\",IF(RIGHT(список_детей[[#This Row],[О]])=\"ч\",\"м\",\"д\"))","v":"м"},13,"компенсирующая","5-6 лет","Лаборатория профессора Размышляйкина","групповые занятия","ЗПР"]
[null,22,"Карташова","Ирина ","Александровна",{"$f":"CONCATENATE(LEFT(список_детей[[#This Row],[Ф]]),LEFT(список_детей[[#This Row],[И]]),LEFT(список_детей[[#This Row],[О]]))","v":"КИА"},{"$f":"список_детей[[#This Row],[И]]&\" \"&LEFT(список_детей[[#This Row],[Ф]])&\".\"","v":"Ирина  К."},"2015-11-08",{"$f":"IF(список_детей[[#This Row],[Дата Рождения]]=\"\",\"\",DATEDIF(список_детей[[#This Row],[Дата Рождения]],TODAY(),\"y\")&\" лет\")","v":"6 лет"},{"$f":"IF(список_детей[[#This Row],[О]]=\"\",\"\",IF(RIGHT(список_детей[[#This Row],[О]])=\"ч\",\"м\",\"д\"))","v":"д"},13,"компенсирующая","5-6 лет","Лаборатория профессора Размышляйкина","групповые занятия","ЗПР"]
[null,23,"Колесова","Анастасия","Данииловна",{"$f":"CONCATENATE(LEFT(список_детей[[#This Row],[Ф]]),LEFT(список_детей[[#This Row],[И]]),LEFT(список_детей[[#This Row],[О]]))","v":"КАД"},{"$f":"список_детей[[#This Row],[И]]&\" \"&LEFT(список_детей[[#This Row],[Ф]])&\".\"","v":"Анастасия К."},"2015-11-03",{"$f":"IF(список_детей[[#This Row],[Дата Рождения]]=\"\",\"\",DATEDIF(список_детей[[#This Row],[Дата Рождения]],TODAY(),\"y\")&\" лет\")","v":"6 лет"},{"$f":"IF(список_детей[[#This Row],[О]]=\"\",\"\",IF(RIGHT(список_детей[[#This Row],[О]])=\"ч\",\"м\",\"д\"))","v":"д"},13,"компенсирующая","5-6 лет","Лаборатория профессора Размышляйкина","групповые занятия","ЗПР"]
[null,24,"Копылова","Софья","Демьяновна",{"$f":"CONCATENATE(LEFT(список_детей[[#This Row],[Ф]]),LEFT(список_детей[[#This Row],[И]]),LEFT(список_детей[[#This Row],[О]]))","v":"КСД"},{"$f":"список_детей[[#This Row],[И]]&\" \"&LEFT(список_детей[[#This Row],[Ф]])&\".\"","v":"Софья К."},"2015-10-29",{"$f":"IF(список_детей[[#This Row],[Дата Рождения]]=\"\",\"\",DATEDIF(список_детей[[#This Row],[Дата Рождения]],TODAY(),\"y\")&\" лет\")","v":"6 лет"},{"$f":"IF(список_детей[[#This Row],[О]]=\"\",\"\",IF(RIGHT(список_детей[[#This Row],[О]])=\"ч\",\"м\",\"д\"))","v":"д"},13,"компенсирующая","5-6 лет","Лаборатория профессора Размышляйкина","групповые занятия","ЗПР"]
[null,25,"Кузнецова","Ксения","Александровна",{"$f":"CONCATENATE(LEFT(список_детей[[#This Row],[Ф]]),LEFT(список_детей[[#This Row],[И]]),LEFT(список_детей[[#This Row],[О]]))","v":"ККА"},{"$f":"список_детей[[#This Row],[И]]&\" \"&LEFT(список_детей[[#This Row],[Ф]])&\".\"","v":"Ксения К."},"2015-11-05",{"$f":"IF(список_детей[[#This Row],[Дата Рождения]]=\"\",\"\",DATEDIF(список_детей[[#This Row],[Дата Рождения]],TODAY(),\"y\")&\" лет\")","v":"6 лет"},{"$f":"IF(список_детей[[#This Row],[О]]=\"\",\"\",IF(RIGHT(список_детей[[#This Row],[О]])=\"ч\",\"м\",\"д\"))","v":"д"},13,"компенсирующая","5-6 лет","Лаборатория профессора Размышляйкина","групповые занятия","ЗПР"]
[null,26,"Михайлова","Надежда","Германовна",{"$f":"CONCATENATE(LEFT(список_детей[[#This Row],[Ф]]),LEFT(список_детей[[#This Row],[И]]),LEFT(список_детей[[#This Row],[О]]))","v":"МНГ"},{"$f":"список_детей[[#This Row],[И]]&\" \"&LEFT(список_детей[[#This Row],[Ф]])&\".\"","v":"Надежда М."},"2015-11-07",{"$f":"IF(список_детей[[#This Row],[Дата Рождения]]=\"\",\"\",DATEDIF(список_детей[[#This Row],[Дата Рождения]],TODAY(),\"y\")&\" лет\")","v":"6 лет"},{"$f":"IF(список_детей[[#This Row],[О]]=\"\",\"\",IF(RIGHT(список_детей[[#This Row],[О]])=\"ч\",\"м\",\"д\"))","v":"д"},13,"компенсирующая","5-6 лет","Лаборатория профессора Размышляйкина","групповые занятия","ЗПР"]
[null,27,"Моисеева","Василиса","Ильинична",{"$f":"CONCATENATE(LEFT(список_детей[[#This Row],[Ф]]),LEFT(список_детей[[#This Row],[И]]),LEFT(список_детей[[#This Row],[О]]))","v":"МВИ"},{"$f":"список_детей[[#This Row],[И]]&\" \"&LEFT(список_детей[[#This Row],[Ф]])&\".\"","v":"Василиса М."},"2015-11-01",{"$f":"IF(список_детей[[#This Row],[Дата Рождения]]=\"\",\"\",DATEDIF(список_детей[[#This Row],[Дата Рождения]],TODAY(),\"y\")&\" лет\")","v":"6 лет"},{"$f":"IF(список_детей[[#This Row],[О]]=\"\",\"\",IF(RIGHT(список_детей[[#This Row],[О]])=\"ч\",\"м\",\"д\"))","v":"д"},13,"компенсирующая","5-6 лет","Лаборатория профессора Размышляйкина","групповые занятия","ЗПР"]
[null,28,"Николаева","Мария","Андреевна",{"$f":"CONCATENATE(LEFT(список_детей[[#This Row],[Ф]]),LEFT(список_детей[[#This Row],[И]]),LEFT(список_детей[[#This Row],[О]]))","v":"НМА"},{"$f":"список_детей[[#This Row],[И]]&\" \"&LEFT(список_детей[[#This Row],[Ф]])&\".\"","v":"Мария Н."},"2015-10-31",{"$f":"IF(список_детей[[#This Row],[Дата Рождения]]=\"\",\"\",DATEDIF(список_детей[[#This Row],[Дата Рождения]],TODAY(),\"y\")&\" лет\")","v":"6 лет"},{"$f":"IF(список_детей[[#This Row],[О]]=\"\",\"\",IF(RIGHT(список_детей[[#This Row],[О]])=\"ч\",\"м\",\"д\"))","v":"д"},13,"компенсирующая","5-6 лет","Лаборатория профессора Размышляйкина","групповые занятия","ЗПР"]
[null,29,"Остальцева","Христина","Вячеславовна",{"$f":"CONCATENATE(LEFT(список_детей[[#This Row],[Ф]]),LEFT(список_детей[[#This Row],[И]]),LEFT(список_детей[[#This Row],[О]]))","v":"ОХВ"},{"$f":"список_детей[[#This Row],[И]]&\" \"&LEFT(список_детей[[#This Row],[Ф]])&\".\"","v":"Христина О."},"2015-10-04",{"$f":"IF(список_детей[[#This Row],[Дата Рождения]]=\"\",\"\",DATEDIF(список_детей[[#This Row],[Дата Рождения]],TODAY(),\"y\")&\" лет\")","v":"6 лет"},{"$f":"IF(список_детей[[#This Row],[О]]=\"\",\"\",IF(RIGHT(список_детей[[#This Row],[О]])=\"ч\",\"м\",\"д\"))","v":"д"},13,"компенсирующая","5-6 лет","Лаборатория профессора Размышляйкина","групповые занятия","ТНР"]
[null,30,"Остапюка","Эмма","Филипповна",{"$f":"CONCATENATE(LEFT(список_детей[[#This Row],[Ф]]),LEFT(список_детей[[#This Row],[И]]),LEFT(список_детей[[#This Row],[О]]))","v":"ОЭФ"},{"$f":"список_детей[[#This Row],[И]]&\" \"&LEFT(список_детей[[#This Row],[Ф]])&\".\"","v":"Эмма О."},"2015-04-20",{"$f":"IF(список_детей[[#This Row],[Дата Рождения]]=\"\",\"\",DATEDIF(список_детей[[#This Row],[Дата Рождения]],TODAY(),\"y\")&\" лет\")","v":"6 лет"},{"$f":"IF(список_детей[[#This Row],[О]]=\"\",\"\",IF(RIGHT(список_детей[[#This Row],[О]])=\"ч\",\"м\",\"д\"))","v":"д"},13,"компенсирующая","5-6 лет","Лаборатория профессора Размышляйкина","групповые занятия","ТНР"]
[null,31,"Пузакова","Дина","Афанасиевна",{"$f":"CONCATENATE(LEFT(список_детей[[#This Row],[Ф]]),LEFT(список_детей[[#This Row],[И]]),LEFT(список_детей[[#This Row],[О]]))","v":"ПДА"},{"$f":"список_детей[[#This Row],[И]]&\" \"&LEFT(список_детей[[#This Row],[Ф]])&\".\"","v":"Дина П."},"2015-03-14",{"$f":"IF(список_детей[[#This Row],[Дата Рождения]]=\"\",\"\",DATEDIF(список_детей[[#This Row],[Дата Рождения]],TODAY(),\"y\")&\" лет\")","v":"7 лет"},{"$f":"IF(список_детей[[#This Row],[О]]=\"\",\"\",IF(RIGHT(список_детей[[#This Row],[О]])=\"ч\",\"м\",\"д\"))","v":"д"},10,"компенсирующая","6-7 лет","Школа Фиолетового леса","групповые занятия","ТНР"]
[null,32,"Сай","Потап","Георгиевич",{"$f":"CONCATENATE(LEFT(список_детей[[#This Row],[Ф]]),LEFT(список_детей[[#This Row],[И]]),LEFT(список_детей[[#This Row],[О]]))","v":"СПГ"},{"$f":"список_детей[[#This Row],[И]]&\" \"&LEFT(список_детей[[#This Row],[Ф]])&\".\"","v":"Потап С."},"2015-06-09",{"$f":"IF(список_детей[[#This Row],[Дата Рождения]]=\"\",\"\",DATEDIF(список_детей[[#This Row],[Дата Рождения]],TODAY(),\"y\")&\" лет\")","v":"6 лет"},{"$f":"IF(список_детей[[#This Row],[О]]=\"\",\"\",IF(RIGHT(список_детей[[#This Row],[О]])=\"ч\",\"м\",\"д\"))","v":"м"},10,"компенсирующая","6-7 лет","Школа Фиолетового леса","групповые занятия","ТНР"]
[null,33,"Самсонова","Ксения","Матвеевна",{"$f":"CONCATENATE(LEFT(список_детей[[#This Row],[Ф]]),LEFT(список_детей[[#This Row],[И]]),LEFT(список_детей[[#This Row],[О]]))","v":"СКМ"},{"$f":"список_детей[[#This Row],[И]]&\" \"&LEFT(список_детей[[#This Row],[Ф]])&\".\"","v":"Ксения С."},"2015-11-06",{"$f":"IF(список_детей[[#This Row],[Дата Рождения]]=\"\",\"\",DATEDIF(список_детей[[#This Row],[Дата Рождения]],TODAY(),\"y\")&\" лет\")","v":"6 лет"},{"$f":"IF(список_детей[[#This Row],[О]]=\"\",\"\",IF(RIGHT(список_детей[[#This Row],[О]])=\"ч\",\"м\",\"д\"))","v":"д"},10,"компенсирующая","6-7 лет","Школа Фиолетового леса","групповые занятия","ЗПР"]
[null,34,"Сидоров","Тимофей","Даниилович",{"$f":"CONCATENATE(LEFT(список_детей[[#This Row],[Ф]]),LEFT(список_детей[[#This Row],[И]]),LEFT(список_детей[[#This Row],[О]]))","v":"СТД"},{"$f":"список_детей[[#This Row],[И]]&\" \"&LEFT(список_детей[[#This Row],[Ф]])&\".\"","v":"Тимофей С."},"2015-10-30",{"$f":"IF(список_детей[[#This Row],[Дата Рождения]]=\"\",\"\",DATEDIF(список_детей[[#This Row],[Дата Рождения]],TODAY(),\"y\")&\" лет\")","v":"6 лет"},{"$f":"IF(список_детей[[#This Row],[О]]=\"\",\"\",IF(RIGHT(список_детей[[#This Row],[О]])=\"ч\",\"м\",\"д\"))","v":"м"},10,"компенсирующая","6-7 лет","Школа Фиолетового леса","групповые занятия","ЗПР"]
[null,35,"Тукаев","Арсений","Капитонович",{"$f":"CONCATENATE(LEFT(список_детей[[#This Row],[Ф]]),LEFT(список_детей[[#This Row],[И]]),LEFT(список_детей[[#This Row],[О]]))","v":"ТАК"},{"$f":"список_детей[[#This Row],[И]]&\" \"&LEFT(список_детей[[#This Row],[Ф]])&\".\"","v":"Арсений Т."},"2015-07-13",{"$f":"IF(список_детей[[#This Row],[Дата Рождения]]=\"\",\"\",DATEDIF(список_детей[[#This Row],[Дата Рождения]],TODAY(),\"y\")&\" лет\")","v":"6 лет"},{"$f":"IF(список_детей[[#This Row],[О]]=\"\",\"\",IF(RIGHT(список_детей[[#This Row],[О]])=\"ч\",\"м\",\"д\"))","v":"м"},10,"компенсирующая","6-7 лет","Школа Фиолетового леса","групповые занятия","ТНР"]
[null,36,"Шелепина","Анна","Мироновна",{"$f":"CONCATENATE(LEFT(список_детей[[#This Row],[Ф]]),LEFT(список_детей[[#This Row],[И]]),LEFT(список_детей[[#This Row],[О]]))","v":"ШАМ"},{"$f":"список_детей[[#This Row],[И]]&\" \"&LEFT(список_детей[[#This Row],[Ф]])&\".\"","v":"Анна Ш."},"2015-05-18",{"$f":"IF(список_детей[[#This Row],[Дата Рождения]]=\"\",\"\",DATEDIF(список_детей[[#This Row],[Дата Рождения]],TODAY(),\"y\")&\" лет\")","v":"6 лет"},{"$f":"IF(список_детей[[#This Row],[О]]=\"\",\"\",IF(RIGHT(список_детей[[#This Row],[О]])=\"ч\",\"м\",\"д\"))","v":"д"},10,"компенсирующая","6-7 лет","Школа Фиолетового леса","групповые занятия","ТНР"]
[null,37,"Экспериментов","Петр","Никифорович",{"$f":"CONCATENATE(LEFT(список_детей[[#This Row],[Ф]]),LEFT(список_детей[[#This Row],[И]]),LEFT(список_детей[[#This Row],[О]]))","v":"ЭПН"},{"$f":"список_детей[[#This Row],[И]]&\" \"&LEFT(список_детей[[#This Row],[Ф]])&\".\"","v":"Петр Э."},"2015-10-06",{"$f":"IF(список_детей[[#This Row],[Дата Рождения]]=\"\",\"\",DATEDIF(список_детей[[#This Row],[Дата Рождения]],TODAY(),\"y\")&\" лет\")","v":"6 лет"},{"$f":"IF(список_детей[[#This Row],[О]]=\"\",\"\",IF(RIGHT(список_детей[[#This Row],[О]])=\"ч\",\"м\",\"д\"))","v":"м"},10,"компенсирующая","6-7 лет","Школа Фиолетового леса","групповые занятия","ТНР"]
[null,38,"Яновицкий","Венедикт","Капитонович",{"$f":"CONCATENATE(LEFT(список_детей[[#This Row],[Ф]]),LEFT(список_детей[[#This Row],[И]]),LEFT(список_детей[[#This Row],[О]]))","v":"ЯВК"},{"$f":"список_детей[[#This Row],[И]]&\" \"&LEFT(список_детей[[#This Row],[Ф]])&\".\"","v":"Венедикт Я."},"2015-08-08",{"$f":"IF(список_детей[[#This Row],[Дата Рождения]]=\"\",\"\",DATEDIF(список_детей[[#This Row],[Дата Рождения]],TODAY(),\"y\")&\" лет\")","v":"6 лет"},{"$f":"IF(список_детей[[#This Row],[О]]=\"\",\"\",IF(RIGHT(список_детей[[#This Row],[О]])=\"ч\",\"м\",\"д\"))","v":"м"},10,"компенсирующая","6-7 лет","Школа Фиолетового леса","групповые занятия","ТНР"]
[null,39,"Яцкова","Алла","Виталиевна",{"$f":"CONCATENATE(LEFT(список_детей[[#This Row],[Ф]]),LEFT(список_детей[[#This Row],[И]]),LEFT(список_детей[[#This Row],[О]]))","v":"ЯАВ"},{"$f":"список_детей[[#This Row],[И]]&\" \"&LEFT(список_детей[[#This Row],[Ф]])&\".\"","v":"Алла Я."},"2015-11-13",{"$f":"IF(список_детей[[#This Row],[Дата Рождения]]=\"\",\"\",DATEDIF(список_детей[[#This Row],[Дата Рождения]],TODAY(),\"y\")&\" лет\")","v":"6 лет"},{"$f":"IF(список_детей[[#This Row],[О]]=\"\",\"\",IF(RIGHT(список_детей[[#This Row],[О]])=\"ч\",\"м\",\"д\"))","v":"д"},10,"компенсирующая","6-7 лет","Школа Фиолетового леса","групповые занятия","ЗПР"]
[null,40,"Новиков","Виктор","Антонович",{"$f":"CONCATENATE(LEFT(список_детей[[#This Row],[Ф]]),LEFT(список_детей[[#This Row],[И]]),LEFT(список_детей[[#This Row],[О]]))","v":"НВА"},{"$f":"список_детей[[#This Row],[И]]&\" \"&LEFT(список_детей[[#This Row],[Ф]])&\".\"","v":"Виктор Н."},"2014-07-23",{"$f":"IF(список_детей[[#This Row],[Дата Рождения]]=\"\",\"\",DATEDIF(список_детей[[#This Row],[Дата Рождения]],TODAY(),\"y\")&\" лет\")","v":"7 лет"},{"$f":"IF(список_детей[[#This Row],[О]]=\"\",\"\",IF(RIGHT(список_детей[[#This Row],[О]])=\"ч\",\"м\",\"д\"))","v":"м"},10,"компенсирующая","6-7 лет","Школа Фиолетового леса","групповые занятия","ЗПР"]
[null,41,"Куликов","Георгий","Леонидович",{"$f":"CONCATENATE(LEFT(список_детей[[#This Row],[Ф]]),LEFT(список_детей[[#This Row],[И]]),LEFT(список_детей[[#This Row],[О]]))","v":"КГЛ"},{"$f":"список_детей[[#This Row],[И]]&\" \"&LEFT(список_детей[[#This Row],[Ф]])&\".\"","v":"Георгий К."},"2014-07-24",{"$f":"IF(список_детей[[#This Row],[Дата Рождения]]=\"\",\"\",DATEDIF(список_детей[[#This Row],[Дата Рождения]],TODAY(),\"y\")&\" лет\")","v":"7 лет"},{"$f":"IF(список_детей[[#This Row],[О]]=\"\",\"\",IF(RIGHT(список_детей[[#This Row],[О]])=\"ч\",\"м\",\"д\"))","v":"м"},15,"общеразвивающая","5-6 лет","В гости к Монсикам","групповые занятия","ЗПР"]
[null,42,"Андреева","Полина","Мироновна",{"$f":"CONCATENATE(LEFT(список_детей[[#This Row],[Ф]]),LEFT(список_детей[[#This Row],[И]]),LEFT(список_детей[[#This Row],[О]]))","v":"АПМ"},{"$f":"список_детей[[#This Row],[И]]&\" \"&LEFT(список_детей[[#This Row],[Ф]])&\".\"","v":"Полина А."},"2014-07-25",{"$f":"IF(список_детей[[#This Row],[Дата Рождения]]=\"\",\"\",DATEDIF(список_детей[[#This Row],[Дата Рождения]],TODAY(),\"y\")&\" лет\")","v":"7 лет"},{"$f":"IF(список_детей[[#This Row],[О]]=\"\",\"\",IF(RIGHT(список_детей[[#This Row],[О]])=\"ч\",\"м\",\"д\"))","v":"д"},16,"общеразвивающая","4-5 лет","В гости к Монсикам","групповые занятия","ЗПР"]
[null,43,"Клюев","Роман","Даниилович",{"$f":"CONCATENATE(LEFT(список_детей[[#This Row],[Ф]]),LEFT(список_детей[[#This Row],[И]]),LEFT(список_детей[[#This Row],[О]]))","v":"КРД"},{"$f":"список_детей[[#This Row],[И]]&\" \"&LEFT(список_детей[[#This Row],[Ф]])&\".\"","v":"Роман К."},"2014-07-26",{"$f":"IF(список_детей[[#This Row],[Дата Рождения]]=\"\",\"\",DATEDIF(список_детей[[#This Row],[Дата Рождения]],TODAY(),\"y\")&\" лет\")","v":"7 лет"},{"$f":"IF(список_детей[[#This Row],[О]]=\"\",\"\",IF(RIGHT(список_детей[[#This Row],[О]])=\"ч\",\"м\",\"д\"))","v":"м"},16,"общеразвивающая","4-5 лет","В гости к Монсикам","групповые занятия","ЗПР"]
[null,44,"Васильев","Иван","Даниилович",{"$f":"CONCATENATE(LEFT(список_детей[[#This Row],[Ф]]),LEFT(список_детей[[#This Row],[И]]),LEFT(список_детей[[#This Row],[О]]))","v":"ВИД"},{"$f":"список_детей[[#This Row],[И]]&\" \"&LEFT(список_детей[[#This Row],[Ф]])&\".\"","v":"Иван В."},"2014-07-27",{"$f":"IF(список_детей[[#This Row],[Дата Рождения]]=\"\",\"\",DATEDIF(список_детей[[#This Row],[Дата Рождения]],TODAY(),\"y\")&\" лет\")","v":"7 лет"},{"$f":"IF(список_детей[[#This Row],[О]]=\"\",\"\",IF(RIGHT(список_детей[[#This Row],[О]])=\"ч\",\"м\",\"д\"))","v":"м"},16,"общеразвивающая","4-5 лет","В гости к Монсикам","групповые занятия","ЗПР"]
[null,45,"Некрасова","Надежда","Савельевна",{"$f":"CONCATENATE(LEFT(список_детей[[#This Row],[Ф]]),LEFT(список_детей[[#This Row],[И]]),LEFT(список_детей[[#This Row],[О]]))","v":"ННС"},{"$f":"список_детей[[#This Row],[И]]&\" \"&LEFT(список_детей[[#This Row],[Ф]])&\".\"","v":"Надежда Н."},"2014-07-28",{"$f":"IF(список_детей[[#This Row],[Дата Рождения]]=\"\",\"\",DATEDIF(список_детей[[#This Row],[Дата Рождения]],TODAY(),\"y\")&\" лет\")","v":"7 лет"},{"$f":"IF(список_детей[[#This Row],[О]]=\"\",\"\",IF(RIGHT(список_детей[[#This Row],[О]])=\"ч\",\"м\",\"д\"))","v":"д"},16,"общеразвивающая","4-5 лет","В гости к Монсикам","групповые занятия","ЗПР"]
[null,46,"Щукина","Елизавета","Ибрагимовна",{"$f":"CONCATENATE(LEFT(список_детей[[#This Row],[Ф]]),LEFT(список_детей[[#This Row],[И]]),LEFT(список_детей[[#This Row],[О]]))","v":"ЩЕИ"},{"$f":"список_детей[[#This Row],[И]]&\" \"&LEFT(список_детей[[#This Row],[Ф]])&\".\"","v":"Елизавета Щ."},"2014-07-29",{"$f":"IF(список_детей[[#This Row],[Дата Рождения]]=\"\",\"\",DATEDIF(список_детей[[#This Row],[Дата Рождения]],TODAY(),\"y\")&\" лет\")","v":"7 лет"},{"$f":"IF(список_детей[[#This Row],[О]]=\"\",\"\",IF(RIGHT(список_детей[[#This Row],[О]])=\"ч\",\"м\",\"д\"))","v":"д"},16,"общеразвивающая","4-5 лет","В гости к Монсикам","групповые занятия","ЗПР"]
[null,47,"Ушакова","Ясмина","Георгиевна",{"$f":"CONCATENATE(LEFT(список_детей[[#This Row],[Ф]]),LEFT(список_детей[[#This Row],[И]]),LEFT(список_детей[[#This Row],[О]]))","v":"УЯГ"},{"$f":"список_детей[[#This Row],[И]]&\" \"&LEFT(список_детей[[#This Row],[Ф]])&\".\"","v":"Ясмина У."},"2014-07-30",{"$f":"IF(список_детей[[#This Row],[Дата Рождения]]=\"\",\"\",DATEDIF(список_детей[[#This Row],[Дата Рождения]],TODAY(),\"y\")&\" лет\")","v":"7 лет"},{"$f":"IF(список_детей[[#This Row],[О]]=\"\",\"\",IF(RIGHT(список_детей[[#This Row],[О]])=\"ч\",\"м\",\"д\"))","v":"д"},16,"общеразвивающая","4-5 лет","В гости к Монсикам","групповые занятия","ЗПР"]
[null,48,"Белов","Даниил","Павлович",{"$f":"CONCATENATE(LEFT(список_детей[[#This Row],[Ф]]),LEFT(список_детей[[#This Row],[И]]),LEFT(список_детей[[#This Row],[О]]))","v":"БДП"},{"$f":"список_детей[[#This Row],[И]]&\" \"&LEFT(список_детей[[#This Row],[Ф]])&\".\"","v":"Даниил Б."},"2014-07-31",{"$f":"IF(список_детей[[#This Row],[Дата Рождения]]=\"\",\"\",DATEDIF(список_детей[[#This Row],[Дата Рождения]],TODAY(),\"y\")&\" лет\")","v":"7 лет"},{"$f":"IF(список_детей[[#This Row],[О]]=\"\",\"\",IF(RIGHT(список_детей[[#This Row],[О]])=\"ч\",\"м\",\"д\"))","v":"м"},16,"общеразвивающая","4-5 лет","В гости к Монсикам","групповые занятия","ЗПР"]
[null,49,"Куликов","Марк","Кириллович",{"$f":"CONCATENATE(LEFT(список_детей[[#This Row],[Ф]]),LEFT(список_детей[[#This Row],[И]]),LEFT(список_детей[[#This Row],[О]]))","v":"КМК"},{"$f":"список_детей[[#This Row],[И]]&\" \"&LEFT(список_детей[[#This Row],[Ф]])&\".\"","v":"Марк К."},"2014-08-01",{"$f":"IF(список_детей[[#This Row],[Дата Рождения]]=\"\",\"\",DATEDIF(список_детей[[#This Row],[Дата Рождения]],TODAY(),\"y\")&\" лет\")","v":"7 лет"},{"$f":"IF(список_детей[[#This Row],[О]]=\"\",\"\",IF(RIGHT(список_детей[[#This Row],[О]])=\"ч\",\"м\",\"д\"))","v":"м"},16,"общеразвивающая","4-5 лет","В гости к Монсикам","групповые занятия","ЗПР"]
[null,50,"Кононов","Алексей","Иванович",{"$f":"CONCATENATE(LEFT(список_детей[[#This Row],[Ф]]),LEFT(список_детей[[#This Row],[И]]),LEFT(список_детей[[#This Row],[О]]))","v":"КАИ"},{"$f":"список_детей[[#This Row],[И]]&\" \"&LEFT(список_детей[[#This Row],[Ф]])&\".\"","v":"Алексей К."},"2014-08-02",{"$f":"IF(список_детей[[#This Row],[Дата Рождения]]=\"\",\"\",DATEDIF(список_детей[[#This Row],[Дата Рождения]],TODAY(),\"y\")&\" лет\")","v":"7 лет"},{"$f":"IF(список_детей[[#This Row],[О]]=\"\",\"\",IF(RIGHT(список_детей[[#This Row],[О]])=\"ч\",\"м\",\"д\"))","v":"м"},16,"общеразвивающая","4-5 лет","В гости к Монсикам","групповые занятия","ЗПР"]
[null,51,"Новикова","Есения","Александровна",{"$f":"CONCATENATE(LEFT(список_детей[[#This Row],[Ф]]),LEFT(список_детей[[#This Row],[И]]),LEFT(список_детей[[#This Row],[О]]))","v":"НЕА"},{"$f":"список_детей[[#This Row],[И]]&\" \"&LEFT(список_детей[[#This Row],[Ф]])&\".\"","v":"Есения Н."},"2014-08-03",{"$f":"IF(список_детей[[#This Row],[Дата Рождения]]=\"\",\"\",DATEDIF(список_детей[[#This Row],[Дата Рождения]],TODAY(),\"y\")&\" лет\")","v":"7 лет"},{"$f":"IF(список_детей[[#This Row],[О]]=\"\",\"\",IF(RIGHT(список_детей[[#This Row],[О]])=\"ч\",\"м\",\"д\"))","v":"д"},16,"общеразвивающая","4-5 лет","В гости к Монсикам","групповые занятия","ЗПР"]
[null,52,"Гончарова","Аиша","Никитична",{"$f":"CONCATENATE(LEFT(список_детей[[#This Row],[Ф]]),LEFT(список_детей[[#This Row],[И]]),LEFT(список_детей[[#This Row],[О]]))","v":"ГАН"},{"$f":"список_детей[[#This Row],[И]]&\" \"&LEFT(список_детей[[#This Row],[Ф]])&\".\"","v":"Аиша Г."},"2014-08-04",{"$f":"IF(список_детей[[#This Row],[Дата Рождения]]=\"\",\"\",DATEDIF(список_детей[[#This Row],[Дата Рождения]],TODAY(),\"y\")&\" лет\")","v":"7 лет"},{"$f":"IF(список_детей[[#This Row],[О]]=\"\",\"\",IF(RIGHT(список_детей[[#This Row],[О]])=\"ч\",\"м\",\"д\"))","v":"д"},16,"общеразвивающая","4-5 лет","В гости к Монсикам","групповые занятия","ЗПР"]
[null,53,"Леонов","Артём","Данилович",{"$f":"CONCATENATE(LEFT(список_детей[[#This Row],[Ф]]),LEFT(список_детей[[#This Row],[И]]),LEFT(список_детей[[#This Row],[О]]))","v":"ЛАД"},{"$f":"список_детей[[#This Row],[И]]&\" \"&LEFT(список_детей[[#This Row],[Ф]])&\".\"","v":"Артём Л."},"2014-08-05",{"$f":"IF(список_детей[[#This Row],[Дата Рождения]]=\"\",\"\",DATEDIF(список_детей[[#This Row],[Дата Рождения]],TODAY(),\"y\")&\" лет\")","v":"7 лет"},{"$f":"IF(список_детей[[#This Row],[О]]=\"\",\"\",IF(RIGHT(список_детей[[#This Row],[О]])=\"ч\",\"м\",\"д\"))","v":"м"},16,"общеразвивающая","4-5 лет","В гости к Монсикам","групповые занятия","ЗПР"]
[null,54,"Сергеев","Юрий","Михайлович",{"$f":"CONCATENATE(LEFT(список_детей[[#This Row],[Ф]]),LEFT(список_детей[[#This Row],[И]]),LEFT(список_детей[[#This Row],[О]]))","v":"СЮМ"},{"$f":"список_детей[[#This Row],[И]]&\" \"&LEFT(список_детей[[#This Row],[Ф]])&\".\"","v":"Юрий С."},"2014-08-06",{"$f":"IF(список_детей[[#This Row],[Дата Рождения]]=\"\",\"\",DATEDIF(список_детей[[#This Row],[Дата Рождения]],TODAY(),\"y\")&\" лет\")","v":"7 лет"},{"$f":"IF(список_детей[[#This Row],[О]]=\"\",\"\",IF(RIGHT(список_детей[[#This Row],[О]])=\"ч\",\"м\",\"д\"))","v":"м"},16,"общеразвивающая","4-5 лет","В гости к Монсикам","групповые занятия","ЗПР"]
[null,55,"Петров","Василий","Даниилович",{"$f":"CONCATENATE(LEFT(список_детей[[#This Row],[Ф]]),LEFT(список_детей[[#This Row],[И]]),LEFT(список_детей[[#This Row],[О]]))","v":"ПВД"},{"$f":"список_детей[[#This Row],[И]]&\" \"&LEFT(список_детей[[#This Row],[Ф]])&\".\"","v":"Василий П."},"2014-08-07",{"$f":"IF(список_детей[[#This Row],[Дата Рождения]]=\"\",\"\",DATEDIF(список_детей[[#This Row],[Дата Рождения]],TODAY(),\"y\")&\" лет\")","v":"7 лет"},{"$f":"IF(список_детей[[#This Row],[О]]=\"\",\"\",IF(RIGHT(список_детей[[#This Row],[О]])=\"ч\",\"м\",\"д\"))","v":"м"},16,"общеразвивающая","4-5 лет","В гости к Монсикам","групповые занятия","ЗПР"]
[null,56,"Григорьев","Матвей","Романович",{"$f":"CONCATENATE(LEFT(список_детей[[#This Row],[Ф]]),LEFT(список_детей[[#This Row],[И]]),LEFT(список_детей[[#This Row],[О]]))","v":"ГМР"},{"$f":"список_детей[[#This Row],[И]]&\" \"&LEFT(список_детей[[#This Row],[Ф]])&\".\"","v":"Матвей Г."},"2014-08-08",{"$f":"IF(список_детей[[#This Row],[Дата Рождения]]=\"\",\"\",DATEDIF(список_детей[[#This Row],[Дата Рождения]],TODAY(),\"y\")&\" лет\")","v":"7 лет"},{"$f":"IF(список_детей[[#This Row],[О]]=\"\",\"\",IF(RIGHT(список_детей[[#This Row],[О]])=\"ч\",\"м\",\"д\"))","v":"м"},16,"общеразвивающая","4-5 лет","В гости к Монсикам","групповые занятия","ЗПР"]
[null,57,"Кондрашова","Полина","Ильинична",{"$f":"CONCATENATE(LEFT(список_детей[[#This Row],[Ф]]),LEFT(список_детей[[#This Row],[И]]),LEFT(список_детей[[#This Row],[О]]))","v":"КПИ"},{"$f":"список_детей[[#This Row],[И]]&\" \"&LEFT(список_детей[[#This Row],[Ф]])&\".\"","v":"Полина К."},"2014-08-09",{"$f":"IF(список_детей[[#This Row],[Дата Рождения]]=\"\",\"\",DATEDIF(список_детей[[#This Row],[Дата Рождения]],TODAY(),\"y\")&\" лет\")","v":"7 лет"},{"$f":"IF(список_детей[[#This Row],[О]]=\"\",\"\",IF(RIGHT(список_детей[[#This Row],[О]])=\"ч\",\"м\",\"д\"))","v":"д"},16,"общеразвивающая","4-5 лет","В гости к Монсикам","групповые занятия","ЗПР"]
[null,58,"Иванов","Лука","Даниилович",{"$f":"CONCATENATE(LEFT(список_детей[[#This Row],[Ф]]),LEFT(список_детей[[#This Row],[И]]),LEFT(список_детей[[#This Row],[О]]))","v":"ИЛД"},{"$f":"список_детей[[#This Row],[И]]&\" \"&LEFT(список_детей[[#This Row],[Ф]])&\".\"","v":"Лука И."},"2014-08-10",{"$f":"IF(список_детей[[#This Row],[Дата Рождения]]=\"\",\"\",DATEDIF(список_детей[[#This Row],[Дата Рождения]],TODAY(),\"y\")&\" лет\")","v":"7 лет"},{"$f":"IF(список_детей[[#This Row],[О]]=\"\",\"\",IF(RIGHT(список_детей[[#This Row],[О]])=\"ч\",\"м\",\"д\"))","v":"м"},16,"общеразвивающая","4-5 лет","В гости к Монсикам","групповые занятия","ЗПР"]
[null,59,"Румянцева","Татьяна","Артёмовна",{"$f":"CONCATENATE(LEFT(список_детей[[#This Row],[Ф]]),LEFT(список_детей[[#This Row],[И]]),LEFT(список_детей[[#This Row],[О]]))","v":"РТА"},{"$f":"список_детей[[#This Row],[И]]&\" \"&LEFT(список_детей[[#This Row],[Ф]])&\".\"","v":"Татьяна Р."},"2014-08-11",{"$f":"IF(список_детей[[#This Row],[Дата Рождения]]=\"\",\"\",DATEDIF(список_детей[[#This Row],[Дата Рождения]],TODAY(),\"y\")&\" лет\")","v":"7 лет"},{"$f":"IF(список_детей[[#This Row],[О]]=\"\",\"\",IF(RIGHT(список_детей[[#This Row],[О]])=\"ч\",\"м\",\"д\"))","v":"д"},16,"общеразвивающая","4-5 лет","В гости к Монсикам","групповые занятия","ЗПР"]
[null,60,"Яцкова","Ариадна","Иларионовна",{"$f":"CONCATENATE(LEFT(список_детей[[#This Row],[Ф]]),LEFT(список_детей[[#This Row],[И]]),LEFT(список_детей[[#This Row],[О]]))","v":"ЯАИ"},{"$f":"список_детей[[#This Row],[И]]&\" \"&LEFT(список_детей[[#This Row],[Ф]])&\".\"","v":"Ариадна Я."},"2014-08-12",{"$f":"IF(список_детей[[#This Row],[Дата Рождения]]=\"\",\"\",DATEDIF(список_детей[[#This Row],[Дата Рождения]],TODAY(),\"y\")&\" лет\")","v":"7 лет"},{"$f":"IF(список_детей[[#This Row],[О]]=\"\",\"\",IF(RIGHT(список_детей[[#This Row],[О]])=\"ч\",\"м\",\"д\"))","v":"д"},16,"общеразвивающая","4-5 лет","В гости к Монсикам","групповые занятия","ЗПР"]
[]
[]
[]
[]
[]
[]
[]
[]
[]
[]
[]
[]
[]
[]
[]
[]
[]
[]
[]
[]
[]
[]
[]
[]
[]
[]
[]
[]
[]
[]
[]
[]
[]
[]
[]
[]
[]
[]
[]
[]
[]
[]
[]
[]
[]
[]
[]
[]
[]
[]
[]
[]
[]
[]
[]
[]
[]
[]
[]
[]
[]
[]
[]
[]
[]
[]
[]
[]
[]
[]
[]
[]
[]
[]
[]
[]
[]
[]
[]
[]
[]
[]
[]
[]
[]
[]
[]
[]
[]
[]
[]
[]
[]
[]
[]
[]
[]
[]
[]
[]
[]
[]
[]
[]
[]
[]
[]
[]
[]
[]
[]
[]
[]
[]
[]
[]
[]
[]
[]
[]
[]
[]
[]
[]
[]
[]
[]
[]
[]
[]
[]
[]
[]
[]
[]
[]
[]
[]
[]
[]
[]
[]
[]
[]
[]
[]
[]
[]
[]
[]
[]
[]
[]
[]
[]
[]
[]
[]
[]
[]
[]
[]
[]
[]
[]
[]
[]
[]
[]
[]
[]
[]
[]
[]
[]
[]
[]
[]
[]
[]
[]
[]
[]
[]
[]
[]
[]
[]
[]
[]
[]
[]
[]
[]
[]
[]
[]
[]
[]
[]
[]
[]
[]
[]
[]
[]
[]
[]
[]
[]
[]
[]
[]
[]
[null,86]
[null,87]
[null,88]
[null,89]
[null,90]
[null,91]
[null,92]
[null,93]
[null,94]
[null,95]
[null,96]
[null,97]
[null,98]
[null,99]
[null,100]
[null,101]
[null,102]
[null,103]
[null,104]
[null,105]
[null,106]
[null,107]
[null,108]
[null,109]
[null,110]
[null,111]
[null,112]
[null,113]
[null,114]
[null,115]
[null,116]
[null,117]
[null,118]
[null,119]
[null,120]
[null,121]
[null,122]
[null,123]
[null,124]
[null,125]
[null,126]
[null,127]
[null,128]
[null,129]
[null,130]
[null,131]
[null,132]
[null,133]
[null,134]
[null,135]
[null,136]
[null,137]
[null,138]
[null,139]
[null,140]
[null,141]
[null,142]
[null,143]
[null,144]
[null,145]
[null,146]
[null,147]
[null,148]
[null,149]
[null,150]
[null,151]
[null,152]
[null,153]
[null,154]
[null,155]
[null,156]
[null,157]
[null,158]
[null,159]
[null,160]
[null,161]
[null,162]
[null,163]
[null,164]
[null,165]
[null,166]
[null,167]
[null,168]
[null,169]
[null,170]
[null,171]
[null,172]
[null,173]
[null,174]
[null,175]
[null,176]
[null,177]
[null,178]
[null,179]
[null,180]
[null,181]
[null,182]
[null,183]
[null,184]
[null,185]
[null,186]
[null,187]
[null,188]
[null,189]
[null,190]
[null,191]
[null,192]
[null,193]
[null,194]
[null,195]
[null,196]
[null,197]
[null,198]
[null,199]
[null,200]
[null,201]
[null,202]
[null,203]
[null,204]
[null,205]
[null,206]
[null,207]
[null,208]
[null,209]
[null,210]
[null,211]
[null,212]
[null,213]
[null,214]
[null,215]
[null,216]
[null,217]
[null,218]
[null,219]
[null,220]
[null,221]
[null,222]
[null,223]
[null,224]
[null,225]
[null,226]
[null,227]
[null,228]
[null,229]
[null,230]
[null,231]
[null,232]
[null,233]
[null,234]
[null,235]
[null,236]
[null,237]
[null,238]
[null,239]
[null,240]
[null,241]
[null,242]
[null,243]
[null,244]
[null,245]
[null,246]
[null,247]
[null,248]
[null,249]
[null,250]
[null,251]
[null,252]
[null,253]
[null,254]
[null,255]
[null,256]
[null,257]
[null,258]
[null,259]
[null,260]
[null,261]
[null,262]
[null,263]
[null,264]
[null,265]
[null,266]
[null,267]
[null,268]
[null,269]
[null,270]
[null,271]
[null,272]
[null,273]
[null,274]
[null,275]
[null,276]
[null,277]
[null,278]
[null,279]
[null,280]
[null,281]
[null,282]
[null,283]
[null,284]
[null,285]
[null,286]
[null,287]
[null,288]
[null,289]
[null,290]
[null,291]
[null,292]
[null,293]
[null,294]
[null,295]
[null,296]
[null,297]
[null,298]
[null,299]
[null,300]
[null,301]